bitfinex/quotes_BTCUSD_20250608
["timestamp","ask_amount","ask_price","bid_price","bid_amount"]
[1749408432380,0.52806397,106370.0,106360.0,0.28744342]
[1749408435454,0.52806397,106370.0,106360.0,0.00244342]
[1749408444864,0.55059091,106370.0,106360.0,0.00244342]
[1749408453282,0.58269091,106370.0,106360.0,0.00244342]
[1749408472587,0.55059091,106370.0,106360.0,0.00244342]
[1749408479421,0.67999039,106370.0,106360.0,0.00244342]
[1749408479622,0.70812134,106370.0,106360.0,0.00244342]
[1749408481071,0.588123,106370.0,106360.0,0.03434342]
[1749408481247,0.37192782,106370.0,106360.0,0.23178587]
[1749408481476,0.56935172,106370.0,106360.0,0.22238402]
[1749408481812,0.55995084,106370.0,106360.0,0.03434341]
[1749408486032,0.55995084,106370.0,106360.0,0.01844341]
[1749408491337,0.55995084,106370.0,106360.0,0.00244341]
[1749408498739,0.55995084,106370.0,106360.0,0.28744341]
[1749408499940,0.55995084,106370.0,106360.0,0.30384341]
[1749408503046,0.55995084,106370.0,106360.0,0.28744341]
[1749408503260,0.55995084,106370.0,106360.0,0.2874434]
[1749408510852,0.55995084,106370.0,106360.0,0.3192434]
[1749408511405,0.55995084,106370.0,106360.0,0.3035434]
[1749408511721,0.55995084,106370.0,106360.0,0.30354339]
[1749408514632,0.55995084,106370.0,106360.0,0.28744339]
[1749408522759,0.55995084,106370.0,106360.0,0.30304339]
[1749408523543,0.59145084,106370.0,106360.0,0.28740339]
[1749408526894,0.59145084,106370.0,106360.0,0.28740338]
[1749408527869,0.59145084,106370.0,106360.0,0.00244338]
[1749408528075,0.59145084,106370.0,106360.0,0.28740338]
[1749408529491,0.59145084,106370.0,106360.0,0.00244338]
[1749408541057,0.55995084,106370.0,106360.0,0.00244338]
[1749408541220,0.55995084,106370.0,106360.0,0.82813648]
[1749408541435,0.55995084,106370.0,106360.0,0.83753842]
[1749408541633,0.55054987,106370.0,106360.0,0.83753842]
[1749408541834,0.55054987,106370.0,106360.0,0.24068796]
[1749408542128,0.55054987,106370.0,106360.0,0.04324541]
[1749408542701,0.55054987,106370.0,106360.0,0.23128602]
[1749408543121,0.55054987,106370.0,106360.0,0.04324541]
[1749408543618,0.55054987,106370.0,106360.0,0.03384338]
[1749408543823,0.55054987,106370.0,106360.0,0.01834338]
[1749408546681,0.55054987,106370.0,106360.0,0.00244338]
[1749408547289,0.56674987,106370.0,106360.0,0.00244338]
[1749408547727,0.55054987,106370.0,106360.0,0.00244338]
[1749408553193,0.58364987,106370.0,106360.0,0.00244338]
[1749408553638,0.58364987,106370.0,106360.0,0.28740338]
[1749408557104,0.58364987,106370.0,106360.0,0.00244338]
[1749408560491,0.56704987,106370.0,106360.0,0.00244338]
[1749408561253,0.58304987,106370.0,106360.0,0.00244338]
[1749408564243,0.56704987,106370.0,106360.0,0.00244338]
[1749408565003,0.55054987,106370.0,106360.0,0.00244338]
[1749408565418,0.55054987,106370.0,106360.0,0.03304338]
[1749408568916,0.55054987,106370.0,106360.0,0.62989384]
[1749408569136,0.55054987,106370.0,106360.0,0.03304338]
[1749408571565,0.55054987,106370.0,106360.0,0.01804338]
[1749408571990,0.55054987,106370.0,106360.0,0.00244338]
[1749408576225,0.55054987,106370.0,106360.0,0.01744338]
[1749408579833,0.55054987,106370.0,106360.0,0.00244338]
[1749408582052,0.55054987,106370.0,106360.0,0.19048399]
[1749408582226,0.55054987,106370.0,106360.0,0.19988584]
[1749408582603,0.55054987,106370.0,106360.0,0.2092876]
[1749408583707,0.55995101,106370.0,106360.0,0.2092876]
[1749408583911,0.56935189,106370.0,106360.0,0.2092876]
[1749408584413,0.56935189,106370.0,106360.0,0.19988584]
[1749408584805,0.56935189,106370.0,106360.0,0.20928751]
[1749408585019,0.56935189,106370.0,106360.0,0.2092876]
[1749408588268,0.56935189,106370.0,106360.0,0.19988584]
[1749408588423,0.56935189,106370.0,106360.0,0.2092876]
[1749408589621,0.56935189,106370.0,106360.0,0.20928759]
[1749408590432,0.56935189,106370.0,106360.0,0.21868926]
[1749408590813,0.56935189,106370.0,106360.0,0.20928759]
[1749408592539,0.38132772,106370.0,106360.0,0.84064113]
[1749408592748,0.38700393,106370.0,106360.0,0.8406413]
[1749408593587,0.38700393,106370.0,106360.0,0.8500428]
[1749408593799,0.56562643,106370.0,106360.0,0.8406413]
[1749408593997,0.58815337,106370.0,106360.0,0.8406413]
[1749408597229,0.58815337,106370.0,106360.0,0.8249413]
[1749408597430,0.58815337,106370.0,106360.0,0.8343428]
[1749408600171,0.40013044,106370.0,106360.0,0.8343428]
[1749408600428,0.03192649,106380.0,106370.0,0.21622529]
[1749408600642,0.67885478,106390.0,106380.0,0.21620497]
[1749408600849,0.06012303,106390.0,106380.0,0.82959879]
[1749408600997,0.37759609,106390.0,106380.0,0.82959878]
[1749408601206,0.38699599,106390.0,106380.0,0.2327485]
[1749408601366,0.37759697,106390.0,106380.0,0.2327485]
[1749408601567,0.21623339,106390.0,106380.0,0.23274849]
[1749408602194,0.55623339,106390.0,106380.0,0.23274849]
[1749408602610,0.55623339,106390.0,106380.0,0.23574849]
[1749408603040,0.55623339,106390.0,106380.0,0.23874849]
[1749408604921,0.55623339,106390.0,106380.0,0.24812348]
[1749408606255,0.54683419,106390.0,106380.0,0.00644334]
[1749408606485,0.5686349,106390.0,106380.0,0.00644334]
[1749408606679,0.5686349,106390.0,106380.0,0.20384886]
[1749408606903,0.5686349,106390.0,106380.0,0.21324894]
[1749408608199,0.5686349,106390.0,106380.0,0.21324893]
[1749408608849,0.5686349,106390.0,106380.0,0.21324902]
[1749408609478,0.5686349,106390.0,106380.0,0.00644333]
[1749408610135,0.55923553,106390.0,106380.0,0.00644333]
[1749408610341,0.54413553,106390.0,106380.0,0.00644333]
[1749408611167,0.52803553,106390.0,106380.0,0.00644333]
[1749408612574,0.52803553,106390.0,106380.0,0.20384885]
[1749408616455,0.52803553,106390.0,106380.0,0.22944893]
[1749408617070,0.52803553,106390.0,106380.0,0.22004885]
[1749408617246,0.52803553,106390.0,106380.0,0.22944902]
[1749408617583,0.52803553,106390.0,106380.0,0.21324902]
[1749408620421,0.52803553,106390.0,106380.0,0.49868902]
[1749408622886,0.52803553,106390.0,106380.0,0.51428902]
[1749408623924,0.52803553,106390.0,106380.0,0.49868902]
[1749408624134,0.52803553,106390.0,106380.0,0.29188333]
[1749408624556,0.52803553,106390.0,106380.0,0.30128359]
[1749408624759,0.52803553,106390.0,106380.0,0.49868902]
[1749408625040,0.52803553,106390.0,106380.0,0.5080891]
[1749408625243,0.52803553,106390.0,106380.0,0.50808909]
[1749408629649,0.53743482,106390.0,106380.0,0.51748908]
[1749408630231,0.55506479,106390.0,106380.0,0.51748908]
[1749408630587,0.53743482,106390.0,106380.0,0.51748908]
[1749408630749,0.55506479,106390.0,106380.0,0.51748908]
[1749408631348,0.55506479,106390.0,106380.0,0.51748907]
[1749408631559,0.55506484,106390.0,106380.0,0.51748907]
[1749408633464,0.55506539,106390.0,106380.0,0.51748907]
[1749408634377,0.53743482,106390.0,106380.0,0.51748907]
[1749408634579,0.55506539,106390.0,106380.0,0.51748907]
[1749408634784,0.55506539,106390.0,106380.0,0.50808908]
[1749408635626,0.55506541,106390.0,106380.0,0.50808908]
[1749408636207,0.5550654,106390.0,106380.0,0.50808908]
[1749408637590,0.55506549,106390.0,106380.0,0.51748907]
[1749408639489,0.5550655,106390.0,106380.0,0.51748907]
[1749408639742,0.55506563,106390.0,106380.0,0.51748907]
[1749408641093,0.55506564,106390.0,106380.0,0.51748907]
[1749408641760,0.55506559,106390.0,106380.0,0.51748907]
[1749408643113,0.55506539,106390.0,106380.0,0.51748907]
[1749408643315,0.55506538,106390.0,106380.0,0.51748907]
[1749408643723,0.55506537,106390.0,106380.0,0.51748907]
[1749408644449,0.55506524,106390.0,106380.0,0.51748907]
[1749408644792,0.53743482,106390.0,106380.0,0.51748907]
[1749408644997,0.53743482,106390.0,106380.0,0.52688889]
[1749408645211,0.55506524,106390.0,106380.0,0.52688889]
[1749408645966,0.55506524,106390.0,106380.0,0.51748907]
[1749408646773,0.5550649,106390.0,106380.0,0.51748907]
[1749408647023,0.53743482,106390.0,106380.0,0.51748907]
[1749408647237,0.5550649,106390.0,106380.0,0.51748907]
[1749408647782,0.5550649,106390.0,106380.0,1.12373943]
[1749408648228,0.55506467,106390.0,106380.0,1.12373943]
[1749408648437,0.53743482,106390.0,106380.0,0.52688897]
[1749408648647,0.55506463,106390.0,106380.0,0.52688897]
[1749408649177,0.56446365,106390.0,106380.0,1.1237389]
[1749408649396,0.57386302,106390.0,106380.0,1.1237389]
[1749408650052,0.57386302,106390.0,106380.0,1.11433916]
[1749408650480,0.55623321,106390.0,106380.0,1.11433916]
[1749408650696,0.57386257,106390.0,106380.0,1.12373898]
[1749408652259,0.55623321,106390.0,106380.0,1.12373898]
[1749408652466,0.57386257,106390.0,106380.0,1.12373898]
[1749408652681,0.55623321,106390.0,106380.0,1.12373898]
[1749408652837,0.56446352,106390.0,106380.0,0.5174887]
[1749408653346,0.54683419,106390.0,106380.0,0.5174887]
[1749408653577,0.56446335,106390.0,106380.0,0.5174887]
[1749408654413,0.56446331,106390.0,106380.0,0.5174887]
[1749408655104,0.54683419,106390.0,106380.0,0.5174887]
[1749408655304,0.56446331,106390.0,106380.0,0.5174887]
[1749408655715,0.55506407,106390.0,106380.0,0.49868881]
[1749408655890,0.55506408,106390.0,106380.0,0.49868881]
[1749408656085,0.55506406,106390.0,106380.0,0.49868881]
[1749408656289,0.5374349,106390.0,106380.0,0.49868881]
[1749408656493,0.55506406,106390.0,106380.0,0.49868881]
[1749408658936,0.55506406,106390.0,106380.0,0.48928873]
[1749408659809,0.54566469,106390.0,106380.0,0.48928873]
[1749408660255,0.52803553,106390.0,106380.0,0.48928873]
[1749408660470,0.54566469,106390.0,106380.0,0.48928873]
[1749408661368,0.54566474,106390.0,106380.0,0.48928873]
[1749408662974,0.54566474,106390.0,106380.0,0.49868881]
[1749408663212,0.52803553,106390.0,106380.0,0.49868881]
[1749408663685,0.54566477,106390.0,106380.0,0.49868881]
[1749408663963,0.52803553,106390.0,106380.0,0.49868881]
[1749408664213,0.54566477,106390.0,106380.0,0.49868881]
[1749408665119,0.52803553,106390.0,106380.0,0.49868881]
[1749408665332,0.54566489,106390.0,106380.0,0.49868881]
[1749408666735,0.52803553,106390.0,106380.0,0.49868881]
[1749408666954,0.54566506,106390.0,106380.0,0.49868881]
[1749408667389,0.52803553,106390.0,106380.0,0.49868881]
[1749408667613,0.54566506,106390.0,106380.0,0.49868881]
[1749408668801,0.54566526,106390.0,106380.0,0.49868881]
[1749408669046,0.52803553,106390.0,106380.0,0.49868881]
[1749408669286,0.54566526,106390.0,106380.0,0.49868881]
[1749408670529,0.52803553,106390.0,106380.0,0.49868881]
[1749408670778,0.54566532,106390.0,106380.0,0.49868881]
[1749408671017,0.52803553,106390.0,106380.0,0.48928873]
[1749408671252,0.54566569,106390.0,106380.0,0.48928873]
[1749408672123,0.54566572,106390.0,106380.0,0.48928873]
[1749408672548,0.52803553,106390.0,106380.0,0.48928873]
[1749408672749,0.54566584,106390.0,106380.0,0.48928873]
[1749408673126,0.52803553,106390.0,106380.0,0.48928873]
[1749408673330,0.54566584,106390.0,106380.0,0.49868881]
[1749408673711,0.52803553,106390.0,106380.0,0.49868881]
[1749408673908,0.54566584,106390.0,106380.0,0.49868881]
[1749408674574,0.54566593,106390.0,106380.0,0.49868881]
[1749408674802,0.54566598,106390.0,106380.0,0.49868881]
[1749408675533,0.54566598,106390.0,106380.0,0.5080888]
[1749408675745,0.52803553,106390.0,106380.0,0.5080888]
[1749408676202,0.54566601,106390.0,106380.0,0.5174887]
[1749408677024,0.37647647,106390.0,106380.0,0.52688834]
[1749408677230,0.38587584,106390.0,106380.0,0.54288834]
[1749408677658,0.38587571,106390.0,106380.0,0.54288834]
[1749408678082,0.58326232,106390.0,106380.0,1.13973898]
[1749408678288,0.57386356,106390.0,106380.0,1.13973898]
[1749408678495,0.57386356,106390.0,106380.0,1.12373897]
[1749408679424,0.55623321,106390.0,106380.0,1.12373897]
[1749408679833,0.57386349,106390.0,106380.0,1.12373897]
[1749408680387,0.57386353,106390.0,106380.0,1.12373897]
[1749408680585,0.57386353,106390.0,106380.0,1.11433915]
[1749408680825,0.56446451,106390.0,106380.0,1.11433915]
[1749408681029,0.54683419,106390.0,106380.0,1.11433915]
[1749408681350,0.54683419,106390.0,106380.0,0.51748869]
[1749408681776,0.56446442,106390.0,106380.0,0.51748869]
[1749408681915,0.56446442,106390.0,106380.0,0.50808879]
[1749408682540,0.54683419,106390.0,106380.0,0.50808879]
[1749408682871,0.56446442,106390.0,106380.0,0.50808879]
[1749408683835,0.56446432,106390.0,106380.0,0.50808879]
[1749408684960,0.54683419,106390.0,106380.0,0.50808879]
[1749408685206,0.56446432,106390.0,106380.0,0.50808879]
[1749408685829,0.56446432,106390.0,106380.0,0.51748869]
[1749408686046,0.56446432,106390.0,106380.0,0.52688851]
[1749408686527,0.56446424,106390.0,106380.0,0.52688851]
[1749408686760,0.01767799,106390.0,106380.0,1.12373897]
[1749408687016,0.0094467,106390.0,106380.0,1.7527889]
[1749408687251,0.00944652,106390.0,106380.0,1.25233792]
[1749408687472,4.794e-05,106390.0,106380.0,1.84918838]
[1749408687675,4.794e-05,106390.0,106380.0,1.93606838]
[1749408688435,4.794e-05,106390.0,106380.0,1.93006838]
[1749408688593,4.794e-05,106390.0,106380.0,1.93806838]
[1749408701065,0.01884572,106390.0,106380.0,1.65262838]
[1749408701267,0.01884572,106390.0,106380.0,1.30845792]
[1749408702070,0.01884563,106390.0,106380.0,1.32435792]
[1749408702281,0.0094467,106390.0,106380.0,1.32435792]
[1749408702868,0.01884563,106390.0,106380.0,1.32435792]
[1749408704307,0.01884563,106390.0,106380.0,1.92120838]
[1749408705025,0.01884554,106390.0,106380.0,1.92120838]
[1749408707211,0.0094467,106390.0,106380.0,1.92120838]
[1749408707695,0.01884554,106390.0,106380.0,1.92120838]
[1749408708484,0.01884554,106390.0,106380.0,1.93640838]
[1749408709719,0.01884554,106390.0,106380.0,1.93640837]
[1749408710111,0.0094467,106390.0,106380.0,1.93640837]
[1749408710666,0.0094467,106390.0,106380.0,1.93616837]
[1749408711929,0.00944661,106390.0,106380.0,1.92096837]
[1749408712348,0.00944661,106390.0,106380.0,1.93616837]
[1749408713436,0.01884537,106390.0,106380.0,1.93616837]
[1749408713752,0.01884537,106390.0,106380.0,1.92096837]
[1749408716891,0.01884537,106390.0,106380.0,1.93716837]
[1749408717458,0.01884537,106390.0,106380.0,1.92096837]
[1749408718643,0.01884537,106390.0,106380.0,1.90506837]
[1749408719977,0.00944661,106390.0,106380.0,1.92156837]
[1749408720617,0.01884537,106390.0,106380.0,1.93776837]
[1749408721360,0.01884537,106390.0,106380.0,1.92156837]
[1749408722945,0.01884537,106390.0,106380.0,1.93776837]
[1749408723160,0.00944652,106390.0,106380.0,1.93776837]
[1749408723591,0.01884519,106390.0,106380.0,1.93776837]
[1749408724205,0.01884519,106390.0,106380.0,1.92156837]
[1749408725687,4.794e-05,106390.0,106380.0,1.92156837]
[1749408726428,0.00944661,106390.0,106380.0,1.92156837]
[1749408726636,4.794e-05,106390.0,106380.0,1.92156837]
[1749408726838,0.00944661,106390.0,106380.0,1.92156837]
[1749408727988,0.00944652,106390.0,106380.0,1.92156837]
[1749408730359,4.794e-05,106390.0,106380.0,1.93656837]
[1749408731868,4.794e-05,106390.0,106380.0,0.74286745]
[1749408732073,4.794e-05,106390.0,106380.0,1.93656837]
[1749408733761,4.794e-05,106390.0,106380.0,1.92156837]
[1749408736470,4.794e-05,106390.0,106380.0,0.72786745]
[1749408736636,4.794e-05,106390.0,106380.0,1.92156837]
[1749408741692,0.00944661,106390.0,106380.0,1.92156837]
[1749408741992,4.794e-05,106390.0,106380.0,1.92156837]
[1749408747191,4.794e-05,106390.0,106380.0,1.90506837]
[1749408748494,0.00944661,106390.0,106380.0,1.90506837]
[1749408748713,4.794e-05,106390.0,106380.0,1.90506837]
[1749408753266,4.794e-05,106390.0,106380.0,1.93616837]
[1749408754210,4.794e-05,106390.0,106380.0,1.95070922]
[1749408754420,4.794e-05,106390.0,106380.0,1.66586922]
[1749408754863,4.794e-05,106390.0,106380.0,1.95070922]
[1749408756727,4.794e-05,106390.0,106380.0,1.66586922]
[1749408756935,4.794e-05,106390.0,106380.0,1.95070922]
[1749408758126,4.794e-05,106390.0,106380.0,1.66586922]
[1749408758430,4.794e-05,106390.0,106380.0,1.95070922]
[1749408760324,0.0094467,106390.0,106380.0,1.24953876]
[1749408760527,0.24813242,106390.0,106380.0,1.37171322]
[1749408760758,0.23873366,106390.0,106380.0,1.57851855]
[1749408760967,0.23873366,106390.0,106380.0,1.58791837]
[1749408761112,0.23873366,106390.0,106380.0,1.5973181]
[1749408761321,0.06014536,106390.0,106380.0,1.5973181]
[1749408761515,0.05074607,106390.0,106380.0,1.5973181]
[1749408761717,0.05074607,106390.0,106380.0,1.60671774]
[1749408762123,0.05074607,106390.0,106380.0,1.60667774]
[1749408762958,0.05074607,106390.0,106380.0,1.23499774]
[1749408763191,0.06014465,106390.0,106380.0,1.60667774]
[1749408764254,0.06954385,106390.0,106380.0,1.60667774]
[1749408765477,0.06014474,106390.0,106380.0,1.60667774]
[1749408766233,0.06014474,106390.0,106380.0,1.30837774]
[1749408768275,0.05074554,106390.0,106380.0,1.30837774]
[1749408768513,0.06014465,106390.0,106380.0,1.30837774]
[1749408769569,0.05074554,106390.0,106380.0,1.30837774]
[1749408769686,0.06954376,106390.0,106380.0,1.30837774]
[1749408769919,0.06014456,106390.0,106380.0,1.30837774]
[1749408770374,0.05074545,106390.0,106380.0,1.30837774]
[1749408770634,0.06014438,106390.0,106380.0,1.30837774]
[1749408770843,0.06014447,106390.0,106380.0,1.30837774]
[1749408770989,0.05074545,106390.0,106380.0,1.30837774]
[1749408771614,0.06014447,106390.0,106380.0,0.93669774]
[1749408771815,0.06014447,106390.0,106380.0,1.30817774]
[1749408772893,0.05074545,106390.0,106380.0,1.30817774]
[1749408773090,0.06014447,106390.0,106380.0,1.30817774]
[1749408773866,0.05074545,106390.0,106380.0,1.30817774]
[1749408774184,0.06014447,106390.0,106380.0,1.30817774]
[1749408776269,0.07894287,106390.0,106380.0,0.70224764]
[1749408776476,0.07894287,106390.0,106380.0,1.30849774]
[1749408778791,0.07894357,106390.0,106380.0,1.2990981]
[1749408779675,0.26693116,106390.0,106380.0,1.2990981]
[1749408780536,0.07894357,106390.0,106380.0,1.30849774]
[1749408780972,0.0695442,106390.0,106380.0,1.30849774]
[1749408783187,0.07894357,106390.0,106380.0,1.30849774]
[1749408784276,0.26693116,106390.0,106380.0,1.2990981]
[1749408786132,0.24813295,106390.0,106380.0,0.00844328]
[1749408786332,0.23873393,106390.0,106380.0,0.29356328]
[1749408786536,0.23873393,106390.0,106380.0,1.08781908]
[1749408786700,0.23873393,106390.0,106380.0,1.08781917]
[1749408787099,0.23873393,106390.0,106380.0,1.078419]
[1749408787326,0.23873393,106390.0,106380.0,0.89041374]
[1749408787543,0.23873393,106390.0,106380.0,0.899814]
[1749408789465,0.23873393,106390.0,106380.0,1.08781926]
[1749408790725,0.05074634,106390.0,106380.0,1.11601897]
[1749408790930,0.23873393,106390.0,106380.0,1.10661933]
[1749408791215,0.06954438,106390.0,106380.0,1.1254187]
[1749408791635,0.07894375,106390.0,106380.0,1.1254187]
[1749408791784,0.26693134,106390.0,106380.0,1.1254187]
[1749408791982,0.2575325,106390.0,106380.0,1.11601906]
[1749408792387,0.24813339,106390.0,106380.0,1.10661933]
[1749408792614,0.23873419,106390.0,106380.0,1.10661933]
[1749408793878,0.23873419,106390.0,106380.0,1.10661951]
[1749408794089,0.2293349,106390.0,106380.0,1.10661951]
[1749408795293,0.21993553,106390.0,106380.0,1.09721943]
[1749408798964,0.21993553,106390.0,106380.0,1.08781926]
[1749408809591,0.21993553,106390.0,106380.0,1.09721943]
[1749408809808,0.21993553,106390.0,106380.0,1.10661951]
[1749408811468,0.21993553,106390.0,106380.0,1.1160195]
[1749408814407,0.21993553,106390.0,106380.0,1.10661951]
[1749408815011,0.21993553,106390.0,106380.0,0.50976905]
[1749408815211,0.21993553,106390.0,106380.0,1.10661951]
[1749408831495,0.19743482,106390.0,106380.0,1.1254194]
[1749408833984,0.19743482,106390.0,106380.0,1.12541896]
[1749408839294,0.19743482,106390.0,106380.0,1.11601914]
[1749408840083,0.19743482,106390.0,106380.0,0.51916868]
[1749408840284,0.19743482,106390.0,106380.0,1.11601914]
[1749408857883,0.19743482,106390.0,106380.0,1.12541896]
[1749408858099,0.19743482,106390.0,106380.0,1.12407615]
[1749408862146,0.21623321,106390.0,106380.0,1.12407615]
[1749408862371,0.21623321,106390.0,106380.0,0.52722569]
[1749408864699,0.21623321,106390.0,106380.0,1.12407615]
[1749408865111,0.02824562,106390.0,106380.0,1.12407615]
[1749408865707,0.21623321,106390.0,106380.0,1.12407615]
[1749408868875,0.0094467,106390.0,106380.0,1.12407615]
[1749408869089,4.794e-05,106390.0,106380.0,1.84972556]
[1749408873834,0.00944652,106390.0,106380.0,1.84972556]
[1749408874242,4.794e-05,106390.0,106380.0,1.84972556]
[1749408875256,4.794e-05,106390.0,106380.0,1.84948556]
[1749408876060,4.794e-05,106390.0,106380.0,1.56460556]
[1749408876279,4.794e-05,106390.0,106380.0,1.84948556]
[1749408878036,0.00944661,106390.0,106380.0,1.84948556]
[1749408878701,0.00944652,106390.0,106380.0,1.84948556]
[1749408879993,0.01884519,106390.0,106380.0,1.84948556]
[1749408881272,0.01884519,106390.0,106380.0,1.2361351]
[1749408881473,0.01884519,106390.0,106380.0,1.2202351]
[1749408881680,0.01884519,106390.0,106380.0,1.81708556]
[1749408882309,0.02824403,106390.0,106380.0,1.90376556]
[1749408882727,0.02824403,106390.0,106380.0,1.92016556]
[1749408883368,0.01884519,106390.0,106380.0,1.92016556]
[1749408883580,0.02824395,106390.0,106380.0,1.92016556]
[1749408883792,0.01884519,106390.0,106380.0,1.92016556]
[1749408884002,0.02824395,106390.0,106380.0,1.92016556]
[1749408891787,0.03764279,106390.0,106380.0,1.92016556]
[1749408892961,0.02824395,106390.0,106380.0,1.92016556]
[1749408893791,0.04704208,106390.0,106380.0,1.3069151]
[1749408894213,0.03764288,106390.0,106380.0,1.3069151]
[1749408894389,0.04704199,106390.0,106380.0,1.3069151]
[1749408894756,0.03764288,106390.0,106380.0,1.3069151]
[1749408894959,4.794e-05,106390.0,106380.0,1.3069151]
[1749408895161,0.00944661,106390.0,106380.0,1.3227151]
[1749408895364,0.00944661,106390.0,106380.0,1.91956556]
[1749408900123,0.00944652,106390.0,106380.0,1.91956556]
[1749408901063,0.01884519,106390.0,106380.0,1.91956556]
[1749408901265,0.00944652,106390.0,106380.0,1.91956556]
[1749408902061,4.794e-05,106390.0,106380.0,1.91956556]
[1749408905080,4.794e-05,106390.0,106380.0,1.94780156]
[1749408909748,4.794e-05,106390.0,106380.0,1.66292156]
[1749408909953,4.794e-05,106390.0,106380.0,1.94776156]
[1749408910203,4.794e-05,106390.0,106380.0,1.66292156]
[1749408910419,4.794e-05,106390.0,106380.0,1.64712156]
[1749408910635,4.794e-05,106390.0,106380.0,1.93220156]
[1749408910848,0.00944661,106390.0,106380.0,1.64712156]
[1749408911267,0.00944652,106390.0,106380.0,1.64712156]
[1749408911553,0.00944652,106390.0,106380.0,1.93216156]
[1749408911762,0.00944652,106390.0,106380.0,1.3353111]
[1749408912183,0.00944652,106390.0,106380.0,1.0502711]
[1749408912387,4.794e-05,106390.0,106380.0,1.0502711]
[1749408912594,0.00944661,106390.0,106380.0,1.3355911]
[1749408913216,0.00944652,106390.0,106380.0,1.3355911]
[1749408913814,4.794e-05,106390.0,106380.0,1.3355911]
[1749408913975,0.00944661,106390.0,106380.0,1.3355911]
[1749408914543,4.794e-05,106390.0,106380.0,1.3355911]
[1749408914744,0.00944652,106390.0,106380.0,1.3355911]
[1749408918923,4.794e-05,106390.0,106380.0,1.3355911]
[1749408919916,4.794e-05,106390.0,106380.0,1.93244156]
[1749408921988,0.00944661,106390.0,106380.0,1.93244156]
[1749408922526,4.794e-05,106390.0,106380.0,1.93244156]
[1749408931207,0.00944661,106390.0,106380.0,1.3355911]
[1749408931446,4.794e-05,106390.0,106380.0,1.3355911]
[1749408931651,0.04034652,106390.0,106380.0,1.3355911]
[1749408931994,0.00944652,106390.0,106380.0,1.3355911]
[1749408932199,4.794e-05,106390.0,106380.0,1.3355911]
[1749408932907,0.00944652,106390.0,106380.0,1.3355911]
[1749408934154,0.00944652,106390.0,106380.0,1.3073551]
[1749408943736,4.794e-05,106390.0,106380.0,1.3073551]
[1749408944216,0.00944652,106390.0,106380.0,1.3355921]
[1749408948132,0.05104528,106390.0,106380.0,1.3355921]
[1749408948341,0.04164652,106390.0,106380.0,1.3355921]
[1749408948552,0.05104536,106390.0,106380.0,1.3355921]
[1749408948760,0.05104528,106390.0,106380.0,1.3355921]
[1749408948967,0.25783118,106390.0,106380.0,0.69130518]
[1749408949372,0.26723055,106390.0,106380.0,1.29755546]
[1749408949797,0.0698435,106390.0,106380.0,1.3069551]
[1749408952799,0.0698435,106390.0,106380.0,1.3351931]
[1749408954880,0.0698435,106390.0,106380.0,1.2484731]
[1749408955927,0.0604443,106390.0,106380.0,1.2484731]
[1749408956136,0.0698435,106390.0,106380.0,1.2484731]
[1749408956539,0.0604443,106390.0,106380.0,1.2484731]
[1749408957564,0.06984341,106390.0,106380.0,1.2484731]
[1749408961787,0.0604443,106390.0,106380.0,1.2484731]
[1749408963863,0.0604443,106390.0,106380.0,1.3351931]
[1749408964595,0.06044421,106390.0,106380.0,1.3351931]
[1749408965206,0.06984332,106390.0,106380.0,1.3069551]
[1749408965409,0.06044421,106390.0,106380.0,1.3069551]
[1749408965845,0.06984323,106390.0,106380.0,1.3069551]
[1749408966603,0.07924234,106390.0,106380.0,1.3069551]
[1749408967556,0.06984323,106390.0,106380.0,1.3069551]
[1749408969401,0.07924243,106390.0,106380.0,1.3069551]
[1749408969894,0.06984323,106390.0,106380.0,1.3069551]
[1749408970068,0.07924243,106390.0,106380.0,1.3069551]
[1749408970523,0.06984323,106390.0,106380.0,1.3069551]
[1749408974003,0.06044421,106390.0,106380.0,1.3069551]
[1749408974210,0.06984323,106390.0,106380.0,1.3069551]
[1749408976840,0.07924243,106390.0,106380.0,1.3069551]
[1749408977037,0.06984323,106390.0,106380.0,1.3069551]
[1749408977431,0.06984323,106390.0,106380.0,1.3068751]
[1749408977835,0.06984323,106390.0,106380.0,1.3351131]
[1749408978860,0.07924243,106390.0,106380.0,1.3351131]
[1749408981381,0.06984323,106390.0,106380.0,1.3351131]
[1749408981813,0.07924243,106390.0,106380.0,1.3351131]
[1749408990400,0.07924314,106390.0,106380.0,1.3351131]
[1749408990805,0.26723073,106390.0,106380.0,1.32571346]
[1749408991087,0.26723134,106390.0,106380.0,1.33511319]
[1749408991714,0.06984438,106390.0,106380.0,1.33511275]
[1749408993497,0.06984438,106390.0,106380.0,0.73826229]
[1749408993703,0.03764438,106390.0,106380.0,1.33511275]
[1749408995659,0.02824509,106390.0,106380.0,1.33511275]
[1749408996271,0.03764438,106390.0,106380.0,1.33511275]
[1749408999816,0.03764438,106390.0,106380.0,1.30687475]
[1749409010757,0.02824509,106390.0,106380.0,1.30687475]
[1749409015402,0.02824509,106390.0,106380.0,1.90372521]
[1749409019507,0.02824509,106390.0,106380.0,1.30687475]
[1749409029917,0.01884589,106390.0,106380.0,1.30687475]
[1749409030036,0.02824509,106390.0,106380.0,1.30687475]
[1749409032850,0.02824509,106390.0,106380.0,1.90372521]
[1749409034835,0.02824509,106390.0,106380.0,1.30687475]
[1749409049552,0.01884589,106390.0,106380.0,1.30687475]
[1749409049732,0.02824509,106390.0,106380.0,1.30687475]
[1749409050145,0.028245,106390.0,106380.0,1.30687475]
[1749409051997,0.0376442,106390.0,106380.0,1.30687475]
[1749409053284,0.01884589,106390.0,106380.0,1.30687475]
[1749409053903,0.028245,106390.0,106380.0,1.30687475]
[1749409057741,0.01884589,106390.0,106380.0,1.30687475]
[1749409058436,0.028245,106390.0,106380.0,1.30687475]
[1749409064791,0.0376442,106390.0,106380.0,1.30687475]
[1749409077741,0.0683442,106390.0,106380.0,1.30687475]
[1749409078066,0.0526442,106390.0,106380.0,1.30687475]
[1749409078415,0.0376442,106390.0,106380.0,1.30687475]
[1749409084628,0.028245,106390.0,106380.0,1.30687475]
[1749409089289,0.01884554,106390.0,106380.0,1.30687475]
[1749409089649,0.02824456,106390.0,106380.0,1.30687475]
[1749409091718,0.01884554,106390.0,106380.0,1.30687475]
[1749409096009,0.02824456,106390.0,106380.0,1.30687475]
[1749409100488,0.02824456,106390.0,106380.0,0.71002429]
[1749409100692,0.02824456,106390.0,106380.0,1.30687475]
[1749409102137,0.03764376,106390.0,106380.0,1.30687475]
[1749409102881,0.03764367,106390.0,106380.0,1.30687475]
[1749409103463,0.06904367,106390.0,106380.0,1.30687475]
[1749409104451,0.07844287,106390.0,106380.0,1.30687475]
[1749409104669,0.06904367,106390.0,106380.0,1.30687475]
[1749409104929,0.07844287,106390.0,106380.0,1.30687475]
[1749409105144,0.06904367,106390.0,106380.0,1.30687475]
[1749409105592,0.07844287,106390.0,106380.0,1.30687475]
[1749409106382,0.26643108,106390.0,106380.0,0.6818251]
[1749409106540,0.06904456,106390.0,106380.0,1.29747511]
[1749409106767,0.06904456,106390.0,106380.0,1.30687475]
[1749409123857,0.05964527,106390.0,106380.0,1.30687475]
[1749409125586,0.01884572,106390.0,106380.0,1.30687475]
[1749409125809,0.02824492,106390.0,106380.0,1.30687475]
[1749409127165,0.0094467,106390.0,106380.0,1.30687475]
[1749409127613,0.01884563,106390.0,106380.0,1.30687475]
[1749409128508,0.02824465,106390.0,106380.0,1.30687475]